[Event "Ruzomberok Closed 2020 - 3. turnaj"]
[Site "Ruzomberok, Slovakia"]
[Date "2020.09.05"]
[Round "5.3"]
[White "Ciglian, Michal"]
[Black "Konkolova, Nikola"]
[Result "1/2-1/2"]
[TimeControl "10m + 5s"]
[WhiteElo "1388"]
[BlackElo "1483"]

1. d4 {[%clk 00:10:08]} {[%emt 00:00:02]} e6 {[%clk 00:10:09]} {[%emt
00:00:02]} 2. c4 {[%clk 00:10:12]} {[%emt 00:00:01]} c6 {[%clk 00:10:13]}
{[%emt 00:00:01]} 3. Nc3 {[%clk 00:10:14]} {[%emt 00:00:03]} d5 {[%clk
00:10:16]} {[%emt 00:00:01]} 4. Nf3 {[%clk 00:10:17]} {[%emt 00:00:02]} Bb4
{[%clk 00:10:19]} {[%emt 00:00:02]} 5. Bd2 {[%clk 00:10:21]} {[%emt 00:00:01]}
Qa5 {[%clk 00:10:20]} {[%emt 00:00:03]} 6. a3 {[%clk 00:10:21]} {[%emt
00:00:05]} Bxc3 {[%clk 00:10:16]} {[%emt 00:00:09]} 7. Bxc3 {[%clk 00:10:25]}
{[%emt 00:00:02]} Qb6 {[%clk 00:10:20]} {[%emt 00:00:01]} 8. e3 {[%clk
00:10:22]} {[%emt 00:00:08]} Nf6 {[%clk 00:10:20]} {[%emt 00:00:05]} 9. Be2
{[%clk 00:10:24]} {[%emt 00:00:02]} O-O {[%clk 00:10:22]} {[%emt 00:00:03]} 10.
O-O {[%clk 00:10:27]} {[%emt 00:00:02]} Nbd7 {[%clk 00:10:19]} {[%emt
00:00:08]} 11. Qc2 {[%clk 00:10:30]} {[%emt 00:00:03]} h6 {[%clk 00:10:21]}
{[%emt 00:00:02]} 12. c5 {[%clk 00:10:31]} {[%emt 00:00:03]} Qc7 {[%emt
00:00:03]} 13. Rad1 {[%clk 00:10:30]} {[%emt 00:00:05]} Re8 {[%clk 00:10:22]}
{[%emt 00:00:08]} 14. Bd3 {[%clk 00:10:30]} {[%emt 00:00:04]} b6 {[%clk
00:10:18]} {[%emt 00:00:11]} 15. b4 {[%clk 00:10:34]} {[%emt 00:00:01]} a5
{[%clk 00:10:16]} {[%emt 00:00:07]} 16. cxb6 {[%clk 00:10:28]} {[%emt
00:00:11]} Nxb6 {[%clk 00:10:10]} {[%emt 00:00:10]} 17. bxa5 {[%clk 00:10:31]}
{[%emt 00:00:02]} Nbd7 {[%clk 00:10:05]} {[%emt 00:00:11]} 18. Rc1 {[%clk
00:10:32]} {[%emt 00:00:04]} Ba6 {[%clk 00:09:55]} {[%emt 00:00:14]} 19. Bxa6
{[%clk 00:10:27]} {[%emt 00:00:10]} Rxa6 {[%clk 00:09:58]} {[%emt 00:00:02]} 20.
Qd3 {[%clk 00:10:10]} {[%emt 00:00:22]} Raa8 {[%clk 00:09:47]} {[%emt
00:00:16]} 21. Bb4 {[%clk 00:10:14]} {[%emt 00:00:01]} e5 {[%clk 00:09:38]}
{[%emt 00:00:14]} 22. Qc3 {[%clk 00:10:15]} {[%emt 00:00:05]} exd4 {[%clk
00:09:16]} {[%emt 00:00:26]} 23. Nxd4 {[%clk 00:10:17]} {[%emt 00:00:02]} Ne5
{[%clk 00:08:54]} {[%emt 00:00:27]} 24. Nxc6 {[%clk 00:09:38]} {[%emt
00:00:45]} Nxc6 {[%clk 00:08:19]} {[%emt 00:00:39]} 25. Qxc6 {[%clk 00:09:40]}
{[%emt 00:00:03]} Qb8 {[%clk 00:08:05]} {[%emt 00:00:19]} 26. g3 {[%clk
00:09:38]} {[%emt 00:00:07]} Rc8 {[%clk 00:07:44]} {[%emt 00:00:26]} 27. Qxc8+
{[%clk 00:09:32]} {[%emt 00:00:12]} Qxc8 {[%clk 00:07:41]} {[%emt 00:00:08]} 28.
Rxc8+ {[%clk 00:09:35]} {[%emt 00:00:02]} Rxc8 {[%clk 00:07:44]} {[%emt
00:00:02]} 29. Rd1 {[%clk 00:09:25]} {[%emt 00:00:15]} Rd8 {[%clk 00:07:28]}
{[%emt 00:00:21]} 30. Be7 {[%clk 00:09:00]} {[%emt 00:00:30]} Rd7 {[%clk
00:07:25]} {[%emt 00:00:08]} 31. Bc5 {[%clk 00:08:53]} {[%emt 00:00:11]} Ne4
{[%clk 00:07:06]} {[%emt 00:00:24]} 32. Bb6 {[%clk 00:08:53]} {[%emt 00:00:05]}
Nc3 {[%clk 00:06:57]} {[%emt 00:00:13]} 33. Rd3 {[%clk 00:08:53]} {[%emt
00:00:05]} Nb5 {[%clk 00:06:53]} {[%emt 00:00:09]} 34. e4 {[%clk 00:08:41]}
{[%emt 00:00:18]} d4 {[%clk 00:06:41]} {[%emt 00:00:16]} 35. a4 {[%clk
00:08:45]} {[%emt 00:00:02]} Nc3 {[%clk 00:06:43]} {[%emt 00:00:03]} 36. Rxd4
{[%clk 00:08:33]} {[%emt 00:00:18]} Ne2+ {[%clk 00:06:43]} {[%emt 00:00:04]} 37.
Kg2 {[%clk 00:08:36]} {[%emt 00:00:02]} Nxd4 {[%clk 00:06:46]} {[%emt
00:00:02]} 38. a6 {[%clk 00:08:25]} {[%emt 00:00:16]} Nc6 {[%clk 00:06:45]}
{[%emt 00:00:06]} 39. a5 {[%clk 00:08:28]} {[%emt 00:00:03]} Kf8 {[%clk
00:06:39]} {[%emt 00:00:10]} 40. f4 {[%clk 00:08:28]} {[%emt 00:00:05]} Ke8
{[%clk 00:06:21]} {[%emt 00:00:22]} 41. Kf3 {[%clk 00:08:31]} {[%emt 00:00:02]}
h5 {[%clk 00:05:56]} {[%emt 00:00:30]} 42. f5 {[%clk 00:07:56]} {[%emt
00:00:40]} Rd3+ {[%clk 00:05:49]} {[%emt 00:00:11]} 43. Kf4 {[%clk 00:07:36]}
{[%emt 00:00:26]} Rd7 {[%clk 00:03:57]} {[%emt 00:01:56]} 44. Kg5 {[%clk
00:07:23]} {[%emt 00:00:19]} f6+ {[%clk 00:03:37]} {[%emt 00:00:25]} 45. Kxh5
{[%clk 00:07:23]} {[%emt 00:00:05]} Kf7 {[%clk 00:03:11]} {[%emt 00:00:31]} 46.
h4 {[%clk 00:07:11]} {[%emt 00:00:17]} Re7 {[%clk 00:02:52]} {[%emt 00:00:23]}
47. g4 {[%clk 00:06:55]} {[%emt 00:00:22]} Re8 {[%clk 00:02:30]} {[%emt
00:00:27]} 48. g5 {[%clk 00:06:59]} {[%emt 00:00:02]} Rh8+ {[%clk 00:02:31]}
{[%emt 00:00:04]} 49. Kg4 {[%clk 00:07:02]} {[%emt 00:00:02]} Ne5+ {[%clk
00:02:22]} {[%emt 00:00:14]} 50. Kg3 {[%clk 00:07:05]} {[%emt 00:00:03]} fxg5
{[%clk 00:02:17]} {[%emt 00:00:09]} 51. hxg5 {[%clk 00:07:08]} {[%emt
00:00:03]} Ra8 {[%clk 00:02:03]} {[%emt 00:00:19]} 52. a7 {[%clk 00:07:09]}
{[%emt 00:00:05]} Nc4 {[%clk 00:02:03]} {[%emt 00:00:05]} 53. Kf4 {[%clk
00:07:07]} {[%emt 00:00:06]} Ke8 {[%clk 00:01:27]} {[%emt 00:00:41]} 54. f6
{[%clk 00:07:08]} {[%emt 00:00:05]} gxf6 {[%clk 00:01:29]} {[%emt 00:00:03]} 55.
gxf6 {[%clk 00:07:11]} {[%emt 00:00:01]} Kf7 {[%clk 00:01:30]} {[%emt
00:00:04]} 56. e5 {[%clk 00:07:12]} {[%emt 00:00:04]} Ke6 {[%clk 00:01:25]}
{[%emt 00:00:09]} 57. Ke4 {[%clk 00:06:43]} {[%emt 00:00:35]} Nxe5 {[%clk
00:01:25]} {[%emt 00:00:05]} 58. Kd4 {[%clk 00:06:37]} {[%emt 00:00:11]} Nc6+
{[%clk 00:01:22]} {[%emt 00:00:08]} 59. Kc5 {[%clk 00:06:40]} {[%emt 00:00:02]}
Nxa7 {[%clk 00:01:22]} {[%emt 00:00:06]} 60. Bc7 {[%clk 00:06:37]} {[%emt
00:00:08]} Rc8 {[%clk 00:00:43]} {[%emt 00:00:43]} 61. Kb6 {[%clk 00:06:34]}
{[%emt 00:00:07]} Kxf6 {[%clk 00:00:27]} {[%emt 00:00:22]} 62. Kb7 {[%clk
00:06:23]} {[%emt 00:00:17]} Ke6 {[%clk 00:00:12]} {[%emt 00:00:20]} 63. Bb6
{[%clk 00:06:20]} {[%emt 00:00:07]} Rc4 {[%clk 00:00:12]} {[%emt 00:00:06]} 64.
Kxa7 {[%clk 00:06:23]} {[%emt 00:00:02]} Ra4 {[%clk 00:00:15]} {[%emt
00:00:02]} 65. a6 {[%clk 00:06:26]} {[%emt 00:00:02]} Rxa6+ {[%clk 00:00:17]}
{[%emt 00:00:03]} 66. Kxa6 {[%clk 00:06:29]} {[%emt 00:00:02]} Ke5 {[%emt
00:00:04]} 1/2-1/2

[Event "Ruzomberok Closed 2020 - 3. turnaj"]
[Site "Ruzomberok, Slovakia"]
[Date "2020.09.05"]
[Round "5.5"]
[White "Novak, Michal"]
[Black "Demko, Ladislav"]
[Result "1-0"]
[TimeControl "10m + 5s"]
[WhiteElo "1096"]
[BlackElo "1701"]

1. e4 {[%clk 00:10:06]} {[%emt 00:00:03]} c5 {[%clk 00:10:08]} {[%emt
00:00:03]} 2. Nf3 {[%clk 00:10:07]} {[%emt 00:00:04]} Nc6 {[%clk 00:10:12]}
{[%emt 00:00:01]} 3. d4 {[%clk 00:10:10]} {[%emt 00:00:02]} cxd4 {[%clk
00:10:16]} {[%emt 00:00:02]} 4. Nxd4 {[%clk 00:10:13]} {[%emt 00:00:02]} e6
{[%clk 00:10:16]} {[%emt 00:00:05]} 5. Bb5 {[%clk 00:10:13]} {[%emt 00:00:04]}
Nf6 {[%clk 00:10:06]} {[%emt 00:00:15]} 6. Nc3 {[%clk 00:10:16]} {[%emt
00:00:02]} a6 {[%clk 00:09:46]} {[%emt 00:00:24]} 7. Nxc6 {[%clk 00:09:53]}
{[%emt 00:00:28]} bxc6 {[%clk 00:09:44]} {[%emt 00:00:07]} 8. Be2 {[%clk
00:09:36]} {[%emt 00:00:21]} Bb4 {[%clk 00:09:40]} {[%emt 00:00:10]} 9. e5
{[%clk 00:09:11]} {[%emt 00:00:31]} Nd5 {[%clk 00:09:38]} {[%emt 00:00:06]} 10.
Bd2 {[%clk 00:09:05]} {[%emt 00:00:11]} O-O {[%clk 00:09:23]} {[%emt 00:00:20]}
11. Nxd5 {[%clk 00:08:55]} {[%emt 00:00:15]} Bxd2+ {[%clk 00:09:20]} {[%emt
00:00:07]} 12. Qxd2 {[%clk 00:08:57]} {[%emt 00:00:04]} cxd5 {[%clk 00:09:15]}
{[%emt 00:00:10]} 13. O-O {[%clk 00:08:53]} {[%emt 00:00:09]} Qb6 {[%clk
00:09:07]} {[%emt 00:00:12]} 14. b3 {[%clk 00:08:46]} {[%emt 00:00:13]} Bb7
{[%clk 00:09:04]} {[%emt 00:00:08]} 15. Rab1 {[%clk 00:08:36]} {[%emt
00:00:15]} Rac8 {[%clk 00:08:57]} {[%emt 00:00:11]} 16. c4 {[%clk 00:08:37]}
{[%emt 00:00:04]} d4 {[%clk 00:08:45]} {[%emt 00:00:17]} 17. Bd3 {[%clk
00:07:44]} {[%emt 00:00:58]} Qc6 {[%clk 00:08:34]} {[%emt 00:00:16]} 18. f3
{[%clk 00:07:29]} {[%emt 00:00:20]} Qc5 {[%clk 00:08:23]} {[%emt 00:00:14]} 19.
Rfe1 {[%clk 00:07:17]} {[%emt 00:00:18]} a5 {[%clk 00:08:18]} {[%emt 00:00:11]}
20. b4 {[%clk 00:07:00]} {[%emt 00:00:22]} axb4 {[%clk 00:08:16]} {[%emt
00:00:06]} 21. Rxb4 {[%clk 00:06:58]} {[%emt 00:00:07]} Bc6 {[%clk 00:08:12]}
{[%emt 00:00:09]} 22. Rbb1 {[%clk 00:06:20]} {[%emt 00:00:43]} Ra8 {[%clk
00:08:06]} {[%emt 00:00:11]} 23. h3 {[%clk 00:05:44]} {[%emt 00:00:41]} g6
{[%clk 00:07:54]} {[%emt 00:00:17]} 24. h4 {[%clk 00:05:32]} {[%emt 00:00:17]}
d6 {[%clk 00:07:56]} {[%emt 00:00:03]} 25. exd6 {[%clk 00:05:17]} {[%emt
00:00:20]} Qxd6 {[%clk 00:07:56]} {[%emt 00:00:05]} 26. h5 {[%clk 00:05:14]}
{[%emt 00:00:08]} Qg3 {[%clk 00:07:53]} {[%emt 00:00:08]} 27. hxg6 {[%clk
00:04:46]} {[%emt 00:00:34]} hxg6 {[%clk 00:07:46]} {[%emt 00:00:11]} 28. Be4
{[%clk 00:04:40]} {[%emt 00:00:10]} Bxe4 {[%clk 00:07:38]} {[%emt 00:00:12]} 29.
Rxe4 {[%clk 00:04:42]} {[%emt 00:00:04]} e5 {[%clk 00:07:32]} {[%emt 00:00:11]}
30. Rg4 {[%clk 00:04:40]} {[%emt 00:00:06]} 1-0

[Event "Ruzomberok Closed 2020 - 3. turnaj"]
[Site "Ruzomberok, Slovakia"]
[Date "2020.09.05"]
[Round "5.6"]
[White "Caban, Lubor"]
[Black "Sustek, Adam"]
[Result "0-1"]
[TimeControl "10m + 5s"]
[WhiteElo "1668"]
[BlackElo "1377"]

1. e4 {[%clk 00:10:04]} {[%emt 00:00:06]} e6 {[%clk 00:10:09]} {[%emt
00:00:02]} 2. d4 {[%clk 00:10:08]} d5 {[%clk 00:10:13]} 3. Nc3 {[%clk
00:10:11]} {[%emt 00:00:02]} Nf6 {[%clk 00:10:17]} {[%emt 00:00:01]} 4. e5
{[%clk 00:10:15]} {[%emt 00:00:02]} Nfd7 {[%clk 00:10:20]} {[%emt 00:00:01]} 5.
Nf3 {[%clk 00:10:19]} {[%emt 00:00:01]} b6 {[%clk 00:10:21]} {[%emt 00:00:04]}
6. Bd3 {[%clk 00:10:23]} {[%emt 00:00:01]} c5 {[%clk 00:10:24]} {[%emt
00:00:02]} 7. Bg5 {[%clk 00:10:21]} {[%emt 00:00:06]} Be7 {[%clk 00:10:26]}
{[%emt 00:00:04]} 8. Qd2 {[%clk 00:10:25]} {[%emt 00:00:02]} Ba6 {[%clk
00:09:59]} {[%emt 00:00:32]} 9. Bxa6 {[%clk 00:09:13]} {[%emt 00:01:17]} Nxa6
{[%clk 00:10:02]} {[%emt 00:00:02]} 10. dxc5 {[%clk 00:09:16]} {[%emt
00:00:01]} Naxc5 {[%clk 00:10:00]} {[%emt 00:00:07]} 11. Bxe7 {[%clk 00:09:13]}
{[%emt 00:00:08]} Qxe7 {[%clk 00:10:02]} {[%emt 00:00:03]} 12. Nb5 {[%clk
00:09:14]} {[%emt 00:00:04]} O-O {[%clk 00:09:40]} {[%emt 00:00:27]} 13. O-O
{[%clk 00:08:56]} {[%emt 00:00:23]} Ne4 {[%clk 00:09:25]} {[%emt 00:00:20]} 14.
Qf4 {[%clk 00:08:53]} {[%emt 00:00:05]} f6 {[%clk 00:09:09]} {[%emt 00:00:24]}
15. Qh4 {[%clk 00:07:59]} {[%emt 00:00:59]} Qc5 {[%clk 00:07:53]} {[%emt
00:01:21]} 16. Nfd4 {[%clk 00:07:18]} {[%emt 00:00:45]} Rfe8 {[%clk 00:05:02]}
{[%emt 00:02:54]} 17. exf6 {[%clk 00:07:02]} {[%emt 00:00:22]} Ndxf6 {[%clk
00:04:28]} {[%emt 00:00:41]} 18. b4 {[%clk 00:06:15]} {[%emt 00:00:52]} Qxb4
{[%clk 00:03:29]} {[%emt 00:01:03]} 19. f3 {[%clk 00:04:02]} {[%emt 00:02:17]}
Qc5 {[%clk 00:00:54]} {[%emt 00:02:41]} 20. fxe4 {[%clk 00:03:31]} {[%emt
00:00:36]} e5 {[%clk 00:00:38]} {[%emt 00:00:21]} 21. Kh1 {[%clk 00:00:44]}
{[%emt 00:02:52]} exd4 {[%emt 00:01:16]} 22. e5 Rxe5 {[%emt 00:00:04]} 23. Qxd4
Kf8 {[%emt 00:00:26]} 0-1

[Event "Ruzomberok Closed 2020 - 3. turnaj"]
[Site "Ruzomberok, Slovakia"]
[Date "2020.09.05"]
[Round "5.7"]
[White "Gasper, Peter"]
[Black "Grib, Stefan"]
[Result "1-0"]
[TimeControl "10m + 5s"]
[WhiteElo "1650"]
[BlackElo "1429"]

1. c4 {[%clk 00:10:09]} f5 {[%clk 00:10:09]} 2. Nc3 {[%clk 00:10:13]} {[%emt
00:00:02]} Nf6 {[%clk 00:10:11]} {[%emt 00:00:03]} 3. d4 {[%clk 00:10:14]}
{[%emt 00:00:04]} e6 {[%clk 00:10:12]} {[%emt 00:00:04]} 4. Bg5 {[%clk
00:10:15]} {[%emt 00:00:04]} h6 {[%clk 00:10:15]} {[%emt 00:00:02]} 5. Bxf6
{[%clk 00:10:14]} {[%emt 00:00:06]} Qxf6 {[%clk 00:10:17]} {[%emt 00:00:03]} 6.
e4 {[%clk 00:10:11]} {[%emt 00:00:08]} b6 {[%clk 00:10:10]} {[%emt 00:00:12]} 7.
e5 {[%clk 00:10:07]} {[%emt 00:00:09]} Qf7 {[%clk 00:10:11]} {[%emt 00:00:03]}
8. Nf3 {[%clk 00:10:03]} {[%emt 00:00:10]} Bb7 {[%clk 00:10:13]} {[%emt
00:00:03]} 9. Qc2 {[%clk 00:09:41]} {[%emt 00:00:27]} d6 {[%clk 00:10:11]}
{[%emt 00:00:06]} 10. O-O-O {[%clk 00:09:40]} {[%emt 00:00:06]} Nd7 {[%clk
00:10:14]} {[%emt 00:00:02]} 11. Be2 {[%clk 00:09:38]} {[%emt 00:00:07]} O-O-O
{[%clk 00:10:16]} {[%emt 00:00:04]} 12. Rhg1 {[%clk 00:09:40]} {[%emt
00:00:03]} Be7 {[%clk 00:10:02]} {[%emt 00:00:19]} 13. exd6 {[%clk 00:09:36]}
{[%emt 00:00:10]} cxd6 {[%clk 00:09:49]} {[%emt 00:00:17]} 14. Kb1 {[%clk
00:09:24]} {[%emt 00:00:17]} Kb8 {[%clk 00:09:46]} {[%emt 00:00:08]} 15. Qa4
{[%clk 00:09:21]} {[%emt 00:00:08]} a6 {[%clk 00:08:14]} {[%emt 00:01:37]} 16.
c5 {[%clk 00:08:49]} {[%emt 00:00:36]} Ka7 {[%emt 00:00:16]} 17. c6 {[%emt
00:00:05]} b5 {[%emt 00:00:08]} 18. Bxb5 {[%clk 00:08:29]} {[%emt 00:00:02]}
Nb6 {[%clk 00:08:13]} {[%emt 00:00:05]} 19. Qa3 {[%clk 00:08:24]} {[%emt
00:00:10]} Bc8 {[%clk 00:07:19]} {[%emt 00:01:00]} 20. Bxa6 {[%clk 00:08:08]}
{[%emt 00:00:21]} Bxa6 {[%clk 00:07:12]} {[%emt 00:00:12]} 21. Nb5+ {[%clk
00:08:11]} {[%emt 00:00:01]} 1-0

[Event "Ruzomberok Closed 2020 - 3. turnaj"]
[Site "Ruzomberok, Slovakia"]
[Date "2020.09.05"]
[Round "6.1"]
[White "Konkolova, Nikola"]
[Black "Holly, Andrej"]
[Result "1/2-1/2"]
[TimeControl "10m + 5s"]
[WhiteElo "1483"]
[BlackElo "1714"]

1. e4 {[%clk 00:10:08]} c5 {[%clk 00:10:09]} {[%emt 00:00:01]} 2. Nf3 {[%clk
00:10:12]} {[%emt 00:00:02]} Nc6 {[%clk 00:10:12]} {[%emt 00:00:01]} 3. d4
{[%clk 00:10:15]} {[%emt 00:00:02]} cxd4 {[%clk 00:10:16]} {[%emt 00:00:01]} 4.
Nxd4 {[%clk 00:10:18]} {[%emt 00:00:02]} g6 {[%clk 00:10:19]} {[%emt 00:00:02]}
5. Be3 {[%clk 00:10:19]} {[%emt 00:00:03]} Bg7 {[%clk 00:10:23]} {[%emt
00:00:02]} 6. c3 {[%clk 00:10:17]} {[%emt 00:00:07]} Nf6 {[%emt 00:00:07]} 7.
Bd3 {[%clk 00:10:19]} {[%emt 00:00:02]} O-O {[%clk 00:10:21]} {[%emt 00:00:04]}
8. O-O {[%clk 00:10:19]} {[%emt 00:00:05]} d6 {[%clk 00:10:23]} {[%emt
00:00:04]} 9. h3 {[%clk 00:10:22]} {[%emt 00:00:02]} Bd7 {[%clk 00:10:21]}
{[%emt 00:00:07]} 10. Nd2 {[%clk 00:10:16]} {[%emt 00:00:12]} Ne5 {[%clk
00:10:16]} {[%emt 00:00:10]} 11. N2f3 {[%clk 00:10:06]} {[%emt 00:00:15]} Nxd3
{[%clk 00:09:57]} {[%emt 00:00:25]} 12. Qxd3 {[%clk 00:10:06]} {[%emt
00:00:05]} Bc6 {[%clk 00:09:55]} {[%emt 00:00:06]} 13. Nxc6 {[%clk 00:09:56]}
{[%emt 00:00:15]} bxc6 {[%clk 00:09:58]} {[%emt 00:00:03]} 14. Rad1 {[%clk
00:09:51]} {[%emt 00:00:09]} Qa5 {[%clk 00:09:04]} {[%emt 00:00:59]} 15. a3
{[%clk 00:09:40]} {[%emt 00:00:16]} Nd7 {[%clk 00:08:40]} {[%emt 00:00:29]} 16.
Bd4 {[%clk 00:09:09]} {[%emt 00:00:36]} Rab8 {[%clk 00:07:29]} {[%emt
00:01:17]} 17. Bxg7 {[%clk 00:08:58]} {[%emt 00:00:15]} Kxg7 {[%clk 00:07:32]}
{[%emt 00:00:02]} 18. Qc2 {[%clk 00:08:56]} {[%emt 00:00:06]} Rb7 {[%clk
00:06:34]} {[%emt 00:01:03]} 19. Nd4 {[%clk 00:08:34]} {[%emt 00:00:28]} c5
{[%clk 00:06:22]} {[%emt 00:00:17]} 20. Nc6 {[%clk 00:08:12]} {[%emt 00:00:27]}
Qb6 {[%clk 00:05:03]} {[%emt 00:01:24]} 21. Nxe7 {[%clk 00:08:09]} {[%emt
00:00:07]} Ne5 {[%clk 00:04:54]} {[%emt 00:00:14]} 22. Nd5 {[%clk 00:07:41]}
{[%emt 00:00:33]} Qxb2 {[%clk 00:04:54]} {[%emt 00:00:06]} 23. Qxb2 {[%clk
00:07:43]} {[%emt 00:00:04]} Rxb2 {[%clk 00:04:57]} {[%emt 00:00:01]} 24. Ne3
{[%clk 00:07:14]} {[%emt 00:00:34]} Rb3 {[%clk 00:03:47]} {[%emt 00:01:16]} 25.
Rxd6 {[%clk 00:07:00]} {[%emt 00:00:18]} Rxc3 {[%clk 00:03:21]} {[%emt
00:00:31]} 26. Rfd1 {[%clk 00:06:30]} {[%emt 00:00:35]} Nc4 {[%clk 00:02:20]}
{[%emt 00:01:06]} 27. Nxc4 {[%clk 00:05:52]} {[%emt 00:00:43]} Rxc4 {[%clk
00:02:24]} {[%emt 00:00:01]} 28. f3 {[%clk 00:05:55]} {[%emt 00:00:02]} Ra4
{[%clk 00:02:04]} {[%emt 00:00:26]} 29. Rc6 {[%clk 00:05:45]} {[%emt 00:00:14]}
c4 {[%clk 00:01:50]} {[%emt 00:00:20]} 30. Rc1 {[%clk 00:05:43]} {[%emt
00:00:07]} Rb8 {[%clk 00:01:07]} {[%emt 00:00:47]} 31. R6xc4 {[%clk 00:05:30]}
{[%emt 00:00:19]} Rxa3 {[%clk 00:01:08]} {[%emt 00:00:03]} 32. Rc7 {[%clk
00:05:19]} {[%emt 00:00:17]} Rb2 {[%clk 00:01:05]} {[%emt 00:00:08]} 33. R7c2
{[%clk 00:05:07]} {[%emt 00:00:17]} Rbb3 {[%clk 00:01:04]} {[%emt 00:00:07]} 34.
Rc7 {[%clk 00:05:08]} {[%emt 00:00:04]} a5 {[%clk 00:00:50]} {[%emt 00:00:19]}
35. Ra7 {[%clk 00:04:46]} {[%emt 00:00:26]} Rb8 {[%clk 00:00:18]} {[%emt
00:00:38]} 36. Rcc7 {[%clk 00:04:44]} {[%emt 00:00:07]} Rf8 {[%clk 00:00:21]}
{[%emt 00:00:01]} 37. Rc5 {[%clk 00:04:42]} {[%emt 00:00:06]} Ra1+ {[%clk
00:00:23]} {[%emt 00:00:04]} 38. Kh2 {[%clk 00:04:45]} {[%emt 00:00:02]} a4
{[%clk 00:00:27]} {[%emt 00:00:01]} 39. Rca5 {[%clk 00:04:47]} {[%emt
00:00:03]} Ra2 {[%clk 00:00:10]} {[%emt 00:00:21]} 1/2-1/2

[Event "Ruzomberok Closed 2020 - 3. turnaj"]
[Site "Ruzomberok, Slovakia"]
[Date "2020.09.05"]
[Round "6.2"]
[White "Gollner, Martin"]
[Black "Jurgos, Samuel"]
[Result "0-1"]
[TimeControl "10m + 5s"]
[WhiteElo "1123"]
[BlackElo "1073"]

1. e4 {[%clk 00:10:08]} {[%emt 00:00:02]} c5 {[%clk 00:10:09]} 2. Nf3 {[%clk
00:10:12]} {[%emt 00:00:01]} g6 {[%clk 00:10:13]} {[%emt 00:00:02]} 3. d4
{[%clk 00:10:15]} cxd4 {[%clk 00:10:16]} {[%emt 00:00:02]} 4. Nxd4 {[%clk
00:10:19]} {[%emt 00:00:02]} Bg7 {[%clk 00:10:09]} {[%emt 00:00:15]} 5. Be3
{[%clk 00:10:20]} {[%emt 00:00:03]} Nc6 {[%clk 00:10:13]} {[%emt 00:00:02]} 6.
Nc3 {[%clk 00:10:17]} {[%emt 00:00:09]} Nf6 {[%clk 00:10:12]} {[%emt 00:00:06]}
7. f3 {[%clk 00:10:20]} {[%emt 00:00:02]} O-O {[%clk 00:10:14]} {[%emt
00:00:02]} 8. Qd2 {[%clk 00:10:23]} {[%emt 00:00:02]} d5 {[%clk 00:10:09]}
{[%emt 00:00:10]} 9. exd5 {[%clk 00:09:15]} {[%emt 00:01:13]} Nxd5 {[%clk
00:10:07]} {[%emt 00:00:07]} 10. Nxc6 {[%clk 00:09:11]} {[%emt 00:00:09]} bxc6
{[%clk 00:10:05]} {[%emt 00:00:06]} 11. Bd4 {[%clk 00:07:52]} {[%emt 00:01:24]}
Nxc3 {[%clk 00:09:41]} {[%emt 00:00:29]} 12. Bxc3 {[%clk 00:07:56]} {[%emt
00:00:02]} Qxd2+ {[%clk 00:09:40]} {[%emt 00:00:06]} 13. Kxd2 {[%clk 00:08:00]}
{[%emt 00:00:02]} Rd8+ {[%clk 00:09:43]} {[%emt 00:00:01]} 14. Bd3 {[%clk
00:08:03]} {[%emt 00:00:01]} Ba6 {[%clk 00:09:31]} {[%emt 00:00:17]} 15. Bxg7
{[%clk 00:06:30]} {[%emt 00:01:38]} Kxg7 {[%clk 00:09:24]} {[%emt 00:00:11]} 16.
Rac1 {[%clk 00:06:29]} {[%emt 00:00:06]} Rab8 {[%clk 00:09:23]} {[%emt
00:00:06]} 17. b3 {[%clk 00:06:27]} {[%emt 00:00:08]} Rd6 {[%clk 00:09:00]}
{[%emt 00:00:28]} 18. c4 {[%clk 00:06:21]} {[%emt 00:00:11]} Rbd8 {[%clk
00:08:53]} {[%emt 00:00:11]} 19. Rc3 {[%clk 00:06:24]} {[%emt 00:00:03]} f5
{[%clk 00:08:43]} {[%emt 00:00:15]} 20. Kc2 {[%clk 00:06:17]} {[%emt 00:00:12]}
e5 {[%clk 00:08:38]} {[%emt 00:00:09]} 21. Rd1 {[%clk 00:05:32]} {[%emt
00:00:51]} c5 {[%clk 00:08:21]} {[%emt 00:00:22]} 22. Be2 {[%clk 00:05:17]}
{[%emt 00:00:20]} Rd4 {[%clk 00:08:16]} {[%emt 00:00:10]} 23. Rcd3 {[%clk
00:04:58]} {[%emt 00:00:25]} Rxd3 {[%clk 00:07:56]} {[%emt 00:00:24]} 24. Rxd3
{[%emt 00:00:04]} Rd4 {[%clk 00:07:50]} {[%emt 00:00:10]} 25. Kc3 {[%clk
00:04:31]} {[%emt 00:00:35]} Kf6 {[%clk 00:07:49]} {[%emt 00:00:05]} 26. f4
{[%clk 00:03:56]} {[%emt 00:00:41]} Rxd3+ {[%clk 00:07:46]} {[%emt 00:00:08]}
27. Kxd3 {[%clk 00:03:51]} {[%emt 00:00:10]} e4+ {[%clk 00:07:48]} {[%emt
00:00:03]} 28. Ke3 {[%clk 00:03:45]} {[%emt 00:00:11]} g5 {[%clk 00:07:26]}
{[%emt 00:00:27]} 29. g4 {[%clk 00:03:25]} {[%emt 00:00:25]} Bc8 {[%clk
00:06:27]} {[%emt 00:01:03]} 30. gxf5 {[%clk 00:02:08]} {[%emt 00:01:23]} Bxf5
{[%clk 00:06:30]} {[%emt 00:00:02]} 31. a3 {[%clk 00:02:10]} {[%emt 00:00:03]}
g4 {[%clk 00:06:24]} {[%emt 00:00:10]} 32. b4 {[%clk 00:02:06]} {[%emt
00:00:10]} cxb4 {[%clk 00:06:23]} {[%emt 00:00:06]} 33. axb4 {[%clk 00:02:10]}
{[%emt 00:00:01]} Ke6 {[%clk 00:06:26]} {[%emt 00:00:02]} 34. Kd4 {[%clk
00:01:47]} {[%emt 00:00:28]} h5 {[%clk 00:06:11]} {[%emt 00:00:20]} 35. c5
{[%clk 00:01:33]} {[%emt 00:00:20]} h4 {[%clk 00:06:07]} {[%emt 00:00:08]} 36.
c6 {[%clk 00:01:00]} {[%emt 00:00:38]} Kd6 {[%clk 00:06:02]} {[%emt 00:00:09]}
37. c7 {[%clk 00:00:56]} {[%emt 00:00:10]} g3 {[%clk 00:05:49]} {[%emt
00:00:18]} 38. hxg3 {[%clk 00:00:17]} {[%emt 00:00:44]} hxg3 {[%clk 00:05:48]}
{[%emt 00:00:05]} 39. Bf1 {[%clk 00:00:12]} {[%emt 00:00:11]} Kxc7 {[%clk
00:05:49]} {[%emt 00:00:04]} 40. Ke5 {[%clk 00:00:10]} {[%emt 00:00:07]} e3
{[%clk 00:05:47]} {[%emt 00:00:06]} 0-1